bitfinex-derivatives/quotes_BTCF0:USTF0_20241122
["timestamp","ask_amount","ask_price","bid_price","bid_amount"]
[1732318888916,0.0708001,98741.0,98740.0,0.3608]
[1732318889312,0.0202261,98741.0,98740.0,0.3608]
[1732318890124,0.0202261,98741.0,98731.0,0.3608]
[1732318890328,0.08472325,98741.0,98731.0,0.3608]
[1732318894534,0.0202261,98741.0,98731.0,0.3608]
[1732318895735,0.08472325,98741.0,98731.0,0.3608]
[1732318897432,0.050575,98740.0,98731.0,0.3608]
[1732318898137,0.08472325,98741.0,98731.0,0.3608]
[1732318898631,0.08472325,98741.0,98729.0,0.0367]
[1732318898947,0.08472325,98741.0,98732.0,0.3608]
[1732318901328,0.09979715,98750.0,98740.0,0.3608]
[1732318901639,0.06449715,98750.0,98740.0,0.3608]
[1732318903639,0.02021999,98743.0,98740.0,0.3608]
[1732318907042,0.02011985,98743.0,98741.0,0.0762]
[1732318912246,0.05062102,98751.0,98741.0,0.0762]
[1732318912544,0.00151944,98752.0,98750.0,0.3608]
[1732318913447,0.05232963,98752.0,98750.0,0.3608]
[1732318920342,0.10289863,98752.0,98750.0,0.3608]
[1732318924745,0.050569,98751.0,98750.0,0.3608]
[1732318930363,0.05232963,98752.0,98750.0,0.3608]
[1732318932760,0.0305894,98752.0,98750.0,0.3608]
[1732318932957,0.07624,98759.0,98750.0,0.3608]
[1732318933162,0.0707921,98757.0,98750.0,0.3608]
[1732318933462,0.050567,98756.0,98750.0,0.3608]
[1732318933654,0.050567,98755.0,98750.0,0.3608]
[1732318934557,0.0202261,98757.0,98750.0,0.3608]
[1732318934558,0.0707921,98757.0,98750.0,0.3608]
[1732318936451,0.0202261,98757.0,98750.0,0.3608]
[1732318942865,0.06449715,98760.0,98750.0,0.3608]
[1732318943072,0.06449715,98760.0,98758.0,0.3608]
[1732318943267,0.0762,98767.0,98759.0,0.0355]
[1732318943467,0.11505815,98768.0,98759.0,0.0355]
[1732318944258,0.06449715,98768.0,98759.0,0.0355]
[1732318945768,0.050562,98765.0,98759.0,0.0355]
[1732318946673,0.11505815,98768.0,98759.0,0.0355]
[1732318946875,0.06449715,98768.0,98759.0,0.0355]
[1732318947177,0.050562,98766.0,98759.0,0.0355]
[1732318947478,0.02021392,98760.0,98759.0,0.0355]
[1732318947773,0.02021392,98760.0,98759.0,0.3963]
[1732318957180,0.02021392,98760.0,98759.0,0.3608]
[1732318957482,0.02021392,98760.0,98750.0,0.3608]
[1732318957680,0.05057,98758.0,98750.0,0.3608]
[1732318958279,0.05057,98758.0,98746.0,0.0387]
[1732318958478,0.05057,98758.0,98742.0,0.035]
[1732318958786,0.050575,98750.0,98740.0,0.3608]
[1732318958978,0.050575,98749.0,98740.0,0.3608]
[1732318959371,0.437,98748.0,98731.0,0.0379]
[1732318959579,0.437,98748.0,98728.0,0.3608]
[1732318959580,0.3608,98738.0,98728.0,0.3608]
[1732318959779,0.050584,98732.0,98720.0,0.3608]
[1732318960083,0.06449715,98730.0,98720.0,0.3608]
[1732318971290,0.02022232,98725.0,98720.0,0.3608]
[1732318974787,0.06449715,98730.0,98720.0,0.3608]
[1732318975095,0.05955725,98730.0,98720.0,0.3608]
[1732318976285,0.05955725,98730.0,98721.0,0.0367]
[1732318976887,0.02022232,98723.0,98721.0,0.0367]
[1732318979086,0.01794195,98730.0,98721.0,0.0367]
[1732318981793,0.02022232,98723.0,98721.0,0.0367]
[1732318982494,0.01794195,98730.0,98721.0,0.0367]
[1732318986283,0.06449715,98731.0,98721.0,0.0367]
[1732318986695,0.0202223,98722.0,98721.0,0.0367]
[1732318987096,0.00228034,98722.0,98721.0,0.0367]
[1732318990600,0.0762,98730.0,98721.0,0.0367]
[1732318991503,0.02022232,98722.0,98721.0,0.0367]
[1732318994500,0.0762,98730.0,98721.0,0.0367]
[1732318995992,0.3608,98725.0,98710.0,0.0367]
[1732318996196,0.3608,98725.0,98701.0,0.0359]
[1732318996197,0.1289943,98720.0,98701.0,0.0359]
[1732318996400,0.01932068,98719.0,98701.0,0.0359]
[1732318997097,0.05792068,98719.0,98701.0,0.0359]
[1732318998198,0.10851068,98719.0,98701.0,0.0359]
[1732318999199,0.050591,98718.0,98701.0,0.0359]
[1732318999809,0.050591,98717.0,98701.0,0.0359]
[1732319000003,0.050592,98715.0,98701.0,0.0359]
[1732319000199,0.050593,98714.0,98701.0,0.0359]
[1732319000400,0.3608,98713.0,98701.0,0.0359]
[1732319000604,0.06449715,98711.0,98701.0,0.0359]
[1732319006506,0.0762,98710.0,98701.0,0.0359]
[1732319006816,0.050595,98709.0,98698.0,0.3608]
[1732319007112,0.050597,98707.0,98698.0,0.3608]
[1732319007314,0.050597,98707.0,98698.0,0.2325265]
[1732319008309,0.09642448,98710.0,98698.0,0.2325265]
[1732319009108,0.0762,98709.0,98698.0,0.2325265]
[1732319009698,0.08472163,98710.0,98698.0,0.2325265]
[1732319011203,0.04882162,98710.0,98698.0,0.2325265]
[1732319012608,0.02022604,98702.0,98698.0,0.2325265]
[1732319013316,0.02022604,98702.0,98698.0,0.2831275]
[1732319013812,0.0762,98713.0,98700.0,0.0506]
[1732319014116,0.0762,98713.0,98701.0,0.077]
[1732319014313,0.02022564,98705.0,98701.0,0.077]
[1732319015514,0.02022564,98705.0,98702.0,0.050599]
[1732319015712,0.27979999,98717.0,98701.0,0.077]
[1732319015904,0.05075297,98719.0,98716.0,0.3608]
[1732319016101,0.00164001,98733.0,98717.0,0.161091]
[1732319016302,0.0762,98735.0,98720.0,0.06449715]
[1732319016609,0.126782,98735.0,98720.0,0.06449715]
[1732319016810,0.06449715,98730.0,98720.0,0.06449715]
[1732319017311,0.06449715,98730.0,98724.0,0.3608]
[1732319017608,0.3608,98736.0,98724.0,0.3608]
[1732319017812,0.05012419,98736.0,98724.0,0.3608]
[1732319018012,0.0762,98737.0,98732.0,0.3608]
[1732319018200,0.06449715,98740.0,98732.0,0.3608]
[1732319018511,0.02022564,98733.0,98732.0,0.3608]
[1732319025213,0.11485708,98742.0,98732.0,0.3608]
[1732319026615,0.02021929,98738.0,98732.0,0.3608]
[1732319026822,0.3608,98748.0,98737.0,0.050581]
[1732319027023,0.02022564,98749.0,98742.0,0.3608]
[1732319027522,0.02022564,98749.0,98738.0,0.12068]
[1732319027715,0.02022564,98749.0,98742.0,0.3608]
[1732319027920,0.02022564,98749.0,98738.0,0.12068]
[1732319028716,0.02022564,98749.0,98740.0,0.3608]
[1732319038026,0.00228572,98749.0,98740.0,0.3608]
[1732319041333,0.1149544,98750.0,98740.0,0.3608]
[1732319042333,0.05045725,98750.0,98740.0,0.3608]
[1732319042539,0.0762,98753.0,98740.0,0.3608]
[1732319043831,0.1275069,98753.0,98740.0,0.3608]
[1732319045036,0.0513069,98753.0,98740.0,0.3608]
[1732319045329,0.06449715,98750.0,98740.0,0.3608]
[1732319046229,0.02021748,98747.0,98740.0,0.3608]
[1732319048832,0.06449715,98750.0,98740.0,0.3608]
[1732319050827,0.4118313,98755.0,98740.0,0.3608]
[1732319051027,0.41019129,98755.0,98740.0,0.3608]
[1732319051431,0.02021748,98748.0,98740.0,0.3608]
[1732319053935,0.06449715,98750.0,98740.0,0.3608]
[1732319056224,0.0202178,98748.0,98740.0,0.3608]
[1732319057829,0.050579,98741.0,98738.0,0.0349]
[1732319058038,0.050578,98743.0,98738.0,0.0349]
[1732319058740,0.3608,98746.0,98738.0,0.0349]
[1732319059332,0.411376,98746.0,98738.0,0.0349]
[1732319060233,0.050577,98745.0,98738.0,0.0349]
[1732319060540,0.050579,98742.0,98738.0,0.0349]
[1732319060725,0.050579,98742.0,98726.0,0.07616]
[1732319060931,0.06449715,98740.0,98726.0,0.07616]
[1732319061641,0.050579,98742.0,98726.0,0.07616]
[1732319063336,0.06449715,98740.0,98726.0,0.07616]
[1732319065841,0.07612,98745.0,98730.0,0.06449715]
[1732319066039,0.07612,98745.0,98737.0,0.3608]
[1732319067639,0.07612,98745.0,98730.0,0.06449715]
[1732319068139,0.07612,98745.0,98737.0,0.3608]
[1732319070741,0.07612,98745.0,98738.0,0.0356]
[1732319073941,0.12679317,98745.0,98738.0,0.0356]
[1732319074544,0.12679317,98745.0,98737.0,0.3608]
[1732319075142,0.02021867,98739.0,98737.0,0.3608]
[1732319077238,0.02021867,98739.0,98729.0,0.3608]
[1732319080345,0.02021867,98739.0,98729.0,0.42529715]
[1732319086049,0.02021867,98739.0,98729.0,0.3608]
[1732319086244,0.3608,98735.0,98726.0,0.0349]
[1732319086647,0.050584,98732.0,98726.0,0.0349]
[1732319087343,0.3608,98735.0,98726.0,0.0349]
[1732319087344,0.050586,98727.0,98726.0,0.0349]
[1732319088048,0.050584,98732.0,98726.0,0.0349]
[1732319090146,0.07612,98733.0,98718.0,0.3608]
[1732319090346,0.050584,98731.0,98718.0,0.3608]
[1732319094850,0.06449715,98732.0,98718.0,0.3608]
[1732319099065,0.02022206,98727.0,98718.0,0.3608]
[1732319099563,0.06449715,98732.0,98718.0,0.3608]
[1732319099859,0.06449715,98732.0,98720.0,0.3608]
[1732319101659,0.06449715,98732.0,98714.0,0.050593]
[1732319101852,0.06449715,98732.0,98720.0,0.3608]
[1732319104068,0.02022206,98727.0,98720.0,0.3608]
[1732319119578,0.4129146,98735.0,98720.0,0.3608]
[1732319119579,0.0521146,98735.0,98720.0,0.3608]
[1732319119773,0.05047459,98735.0,98729.0,0.3608]
[1732319119977,0.07612,98748.0,98730.0,0.0718]
[1732319120172,0.07612,98748.0,98737.0,0.3608]
[1732319120372,0.07612,98748.0,98738.0,0.0374]
[1732319121980,0.02022206,98745.0,98738.0,0.0374]
[1732319144683,0.05141933,98748.0,98744.0,0.050577]
[1732319144892,0.02021867,98755.0,98746.0,0.050576]
[1732319145087,0.07608,98763.0,98751.0,0.050574]
[1732319145285,0.07608,98763.0,98747.0,0.0389]
[1732319145492,0.02021767,98758.0,98748.0,0.050575]
[1732319145789,0.02021767,98758.0,98750.0,0.3608]
[1732319147090,0.07608,98763.0,98750.0,0.3608]
[1732319147091,0.01701796,98763.0,98750.0,0.3608]
[1732319147590,0.01701796,98763.0,98750.0,0.42529715]
[1732319147995,0.06449715,98760.0,98750.0,0.42529715]
[1732319148292,0.06449715,98760.0,98750.0,0.3608]
[1732319150595,0.02021767,98758.0,98750.0,0.3608]
[1732319153692,0.06830008,98763.0,98750.0,0.3608]
[1732319153693,0.05128212,98763.0,98750.0,0.3608]
[1732319153992,0.3608,98768.0,98752.0,0.050573]
[1732319154192,0.06449715,98762.0,98753.0,0.0375]
[1732319155099,0.3608,98768.0,98753.0,0.0375]
[1732319155292,0.02021585,98763.0,98753.0,0.0375]
[1732319156298,0.084713,98763.0,98753.0,0.0375]
[1732319157402,0.02021585,98763.0,98753.0,0.0375]
[1732319159191,0.41230157,98768.0,98755.0,0.050572]
[1732319159398,0.04978156,98768.0,98755.0,0.050572]
[1732319159702,0.06449715,98770.0,98758.0,0.3608]
[1732319160291,0.06449715,98770.0,98760.0,0.06449715]
[1732319160491,0.06449715,98770.0,98758.0,0.3608]
[1732319161394,0.11506115,98770.0,98758.0,0.3608]
[1732319161794,0.06449715,98770.0,98758.0,0.3608]
[1732319161999,0.050565,98768.0,98758.0,0.3608]
[1732319162202,0.11396536,98770.0,98758.0,0.3608]
[1732319165502,0.11396536,98770.0,98760.0,0.06449715]
[1732319166105,0.04946821,98770.0,98760.0,0.06449715]
[1732319166301,0.3608,98772.0,98760.0,0.06449715]
[1732319166601,0.41143244,98772.0,98760.0,0.06449715]
[1732319167902,0.06449715,98770.0,98758.0,0.3608]
[1732319168500,0.050565,98768.0,98758.0,0.3608]
[1732319169194,0.06449715,98770.0,98758.0,0.3608]
[1732319169407,0.050566,98766.0,98758.0,0.3608]
[1732319169905,0.06449715,98770.0,98758.0,0.3608]
[1732319170104,0.11506115,98770.0,98758.0,0.3608]
[1732319170294,0.050565,98769.0,98758.0,0.3608]
[1732319170499,0.06449715,98770.0,98758.0,0.3608]
[1732319171096,0.050565,98768.0,98758.0,0.3608]
[1732319172710,0.06449715,98770.0,98758.0,0.3608]
[1732319173303,0.050568,98763.0,98753.0,0.0375]
[1732319173500,0.06449715,98770.0,98753.0,0.0375]
[1732319174010,0.050567,98764.0,98753.0,0.0375]
[1732319174208,0.050568,98763.0,98753.0,0.0375]
[1732319176604,0.050568,98762.0,98753.0,0.0375]
[1732319179604,0.06449715,98770.0,98753.0,0.0375]
[1732319179806,0.050568,98762.0,98753.0,0.0375]
[1732319180208,0.06449715,98770.0,98753.0,0.0375]
[1732319180804,0.050567,98765.0,98753.0,0.0375]
[1732319181008,0.02021585,98761.0,98753.0,0.0375]
[1732319185809,0.050567,98764.0,98753.0,0.0375]
[1732319187119,0.050568,98763.0,98753.0,0.0375]
[1732319189525,0.050568,98762.0,98753.0,0.0375]
[1732319189825,0.06449715,98763.0,98753.0,0.0375]
[1732319190014,0.05057,98760.0,98753.0,0.0375]
[1732319190924,0.02021554,98762.0,98753.0,0.0375]
[1732319191822,0.07612,98761.0,98750.0,0.33906898]
[1732319192019,0.050572,98755.0,98750.0,0.32326001]
[1732319193215,0.3608,98758.0,98750.0,0.32326001]
[1732319193417,0.050572,98754.0,98750.0,0.32326001]
[1732319194424,0.050572,98754.0,98751.0,0.0358]
[1732319195617,0.02021554,98762.0,98751.0,0.0358]
[1732319195823,0.02021554,98762.0,98752.0,0.0757]
[1732319196619,0.07612,98768.0,98752.0,0.0757]
[1732319196813,0.3608,98767.0,98752.0,0.0757]
[1732319198521,0.3608,98767.0,98752.0,0.4365]
[1732319200423,0.06449715,98762.0,98752.0,0.4365]
[1732319205915,0.11454768,98762.0,98752.0,0.4365]
[1732319206924,0.05005053,98762.0,98761.0,0.3608]
[1732319207131,0.050561,98777.0,98761.0,0.3608]
[1732319207324,0.050561,98777.0,98758.0,0.05057]
[1732319207325,0.06449715,98771.0,98762.0,0.3608]
[1732319212627,0.06449715,98771.0,98761.0,0.3608]
[1732319214319,0.3608,98762.0,98757.0,0.07612]
[1732319214520,0.06449715,98771.0,98757.0,0.43692]
[1732319214724,0.06449715,98771.0,98757.0,0.07612]
[1732319217528,0.3608,98776.0,98760.0,0.06449715]
[1732319217728,0.3608,98776.0,98762.0,0.050568]
[1732319217932,0.3608,98776.0,98760.0,0.06449715]
[1732319218429,0.3608,98776.0,98760.0,0.11506615]
[1732319219438,0.3608,98776.0,98760.0,0.06449715]
[1732319220234,0.02021384,98775.0,98760.0,0.06449715]
[1732319221035,0.06449715,98770.0,98760.0,0.06449715]
[1732319221237,0.02021384,98775.0,98760.0,0.06449715]
[1732319221627,0.07077584,98775.0,98760.0,0.06449715]
[1732319222224,0.07077584,98775.0,98759.0,0.3608]
[1732319222426,0.07077584,98775.0,98760.0,0.06449715]
[1732319222737,0.02021384,98775.0,98760.0,0.06449715]
[1732319223637,0.06449715,98770.0,98761.0,0.07604]
[1732319228025,0.02021384,98775.0,98761.0,0.07604]
[1732319228228,0.06449715,98771.0,98761.0,0.07604]
[1732319237244,0.050565,98769.0,98759.0,0.43684]
[1732319237446,0.06449715,98771.0,98759.0,0.43684]
[1732319237643,0.050565,98769.0,98759.0,0.43684]
[1732319239444,0.050565,98769.0,98759.0,0.3608]
[1732319239743,0.3608,98765.0,98759.0,2.21499751]
[1732319239937,0.02021427,98776.0,98764.0,0.3608]
[1732319240244,0.00164001,98786.0,98775.0,0.3608]
[1732319240432,0.050553,98791.0,98777.0,0.3608]
[1732319240745,0.3608,98780.0,98770.0,0.11273833]
[1732319240946,0.30395222,98780.0,98770.0,0.11273833]
[1732319241133,0.1289943,98780.0,98779.0,0.3608]
[1732319241337,0.3608,98792.0,98779.0,0.3608]
[1732319241547,0.41069893,98792.0,98780.0,0.07604]
[1732319241746,0.19349145,98790.0,98780.0,0.07604]
[1732319242944,0.19349145,98790.0,98775.0,0.050561]
[1732319242945,0.19349145,98790.0,98779.0,0.07604]
[1732319243135,0.06449715,98785.0,98779.0,0.07604]
[1732319243343,0.3608,98784.0,98779.0,0.07604]
[1732319243541,0.06449715,98785.0,98779.0,0.07604]
[1732319243741,0.1289943,98775.0,98766.0,0.0355]
[1732319243944,0.06449429,98776.0,98767.0,0.07604]
[1732319244138,0.06449429,98776.0,98775.0,0.050561]
[1732319244342,0.19348287,98785.0,98778.0,0.05056]
[1732319244543,0.19348287,98785.0,98773.0,0.3608]
[1732319244544,0.12898858,98785.0,98779.0,0.050559]
[1732319244845,0.12898858,98785.0,98780.0,0.050559]
[1732319245042,0.19348287,98790.0,98781.0,0.0338]
[1732319247441,0.12898858,98790.0,98775.0,0.07604]
[1732319247641,0.12898858,98785.0,98775.0,0.07604]
[1732319247849,0.12898858,98785.0,98780.0,0.050558]
[1732319248049,0.07604,98794.0,98780.0,0.050558]
[1732319248050,0.12898858,98790.0,98780.0,0.050558]
[1732319248836,0.12898858,98790.0,98775.0,0.07604]
[1732319249040,0.050561,98777.0,98773.0,0.3608]
[1732319249347,0.3608,98774.0,98755.0,0.3608]
[1732319249549,0.42527844,98765.0,98755.0,0.3608]
[1732319249938,0.3608,98763.0,98753.0,0.07604]
[1732319251647,0.3608,98763.0,98749.0,0.0745]
[1732319251948,0.06447844,98759.0,98749.0,0.0745]
[1732319254256,0.06447844,98759.0,98749.0,0.0373]
[1732319256055,0.06447844,98759.0,98750.0,0.050574]
[1732319257449,0.06447844,98759.0,98749.0,0.0373]
[1732319257749,0.12895688,98760.0,98755.0,0.050571]
[1732319257957,0.3608,98763.0,98755.0,0.050571]
[1732319258647,0.30394758,98763.0,98755.0,0.050571]
[1732319258846,0.30394758,98763.0,98756.0,0.050571]
[1732319259150,0.30394758,98763.0,98757.0,0.05057]
[1732319259347,0.30394758,98763.0,98756.0,0.3608]
[1732319259554,0.06447844,98770.0,98764.0,0.050567]
[1732319259858,0.06447844,98770.0,98767.0,0.050565]
[1732319260352,0.06447844,98777.0,98764.0,0.3608]
[1732319260544,0.06447844,98780.0,98772.0,0.050562]
[1732319261551,0.02021436,98781.0,98772.0,0.050562]
[1732319261848,0.02021436,98781.0,98765.0,0.0371]
[1732319262048,0.06447844,98775.0,98765.0,0.0371]
[1732319262251,0.06447844,98775.0,98771.0,0.050563]
[1732319262453,0.0846928,98781.0,98771.0,0.050563]
[1732319265159,0.1352508,98781.0,98765.0,0.087667]
[1732319265458,0.06447844,98775.0,98768.0,0.050565]
[1732319265653,0.05521436,98781.0,98768.0,0.050565]
[1732319266060,0.05521436,98781.0,98766.0,0.3608]
[1732319266758,0.05521436,98781.0,98768.0,0.050565]
[1732319267064,0.05521436,98781.0,98770.0,0.050564]
[1732319268459,0.05521436,98781.0,98767.0,0.0352]
[1732319269562,0.05521436,98781.0,98766.0,0.050566]
[1732319269764,0.0359,98780.0,98766.0,0.050566]
[1732319270366,0.0359,98780.0,98770.0,0.06447844]
[1732319270667,0.05521436,98781.0,98773.0,0.050562]
[1732319271167,0.05521436,98781.0,98770.0,0.06447844]
[1732319271363,0.05521436,98781.0,98774.0,0.050561]
[1732319277174,0.05521436,98781.0,98769.0,0.07604]
[1732319277961,0.05521436,98781.0,98775.0,0.050561]
[1732319278165,0.05521436,98781.0,98776.0,0.05056]
[1732319280575,0.05521436,98781.0,98773.0,0.050562]
[1732319281275,0.05521436,98781.0,98770.0,0.050564]
[1732319281471,0.05521436,98781.0,98776.0,0.050561]
[1732319281777,0.05521436,98781.0,98773.0,0.050562]
[1732319282680,0.05521436,98781.0,98765.0,0.3979]
[1732319282864,0.3608,98771.0,98766.0,0.050566]
[1732319283473,0.06447844,98775.0,98765.0,0.0371]
[1732319283474,0.06447844,98775.0,98768.0,0.050565]
[1732319283787,0.06447844,98775.0,98774.0,0.3608]
[1732319284072,0.05521436,98781.0,98775.0,0.050561]
[1732319284575,0.05521436,98781.0,98774.0,0.3608]
[1732319285366,0.41601436,98781.0,98766.0,0.050566]
[1732319285573,0.06447844,98776.0,98771.0,0.050563]
[1732319285772,0.4821728,98781.0,98771.0,0.050563]
[1732319285974,0.4804928,98781.0,98771.0,0.050563]
[1732319286371,0.4804928,98781.0,98765.0,0.0371]
[1732319286677,0.06447844,98775.0,98771.0,0.050563]
[1732319286971,0.48213281,98781.0,98771.0,0.050563]
[1732319287177,0.4804928,98781.0,98772.0,0.050563]
[1732319287369,0.41601436,98781.0,98772.0,0.050563]
[1732319288170,0.05521436,98781.0,98772.0,0.050563]
[1732319289473,0.05521436,98781.0,98765.0,0.0371]
[1732319289785,0.05521436,98781.0,98772.0,0.050563]
[1732319290083,0.05521436,98781.0,98773.0,0.050562]
[1732319291484,0.05521436,98781.0,98777.0,0.3608]
[1732319291784,0.05521436,98781.0,98777.0,0.41136]
[1732319292286,0.05521436,98781.0,98777.0,0.3608]
[1732319293185,0.02021436,98781.0,98777.0,0.3608]
[1732319293382,0.02021436,98781.0,98777.0,0.411355]
[1732319293776,0.02021436,98781.0,98777.0,0.3608]
[1732319297479,0.3608,98792.0,98778.0,0.30372]
[1732319297679,0.3608,98792.0,98791.0,0.3608]
[1732319297680,0.05114857,98792.0,98791.0,0.3608]
[1732319297879,0.3608,98818.0,98802.0,0.050542]
[1732319298085,0.411335,98818.0,98808.0,0.3608]
[1732319299084,0.3608,98818.0,98808.0,0.3608]
[1732319299880,0.02020883,98809.0,98808.0,0.3608]
[1732319300687,0.3608,98818.0,98808.0,0.3608]
[1732319300888,0.38100883,98818.0,98809.0,0.050544]
[1732319301084,0.43068215,98818.0,98810.0,0.0766]
[1732319301277,0.41047332,98818.0,98810.0,0.0766]
[1732319301683,0.0323,98817.0,98810.0,0.0766]
[1732319304383,0.0323,98817.0,98808.0,0.3608]
[1732319304581,0.0323,98817.0,98808.0,0.43736]
[1732319304784,0.0323,98817.0,98808.0,0.3608]
[1732319305185,0.0323,98817.0,98808.0,0.411344]
[1732319305687,0.0323,98817.0,98808.0,0.3608]
[1732319306393,0.00073318,98817.0,98808.0,0.3608]
[1732319308297,0.00073318,98817.0,98808.0,0.411344]
[1732319308984,0.00073318,98817.0,98808.0,0.3608]
[1732319315202,0.41211333,98818.0,98808.0,0.3608]
[1732319315405,0.41047332,98818.0,98808.0,0.3608]
[1732319316200,0.37890503,98818.0,98808.0,0.3608]
[1732319316803,0.04967332,98818.0,98808.0,0.3608]
[1732319317002,0.02020883,98821.0,98808.0,0.3608]
[1732319319400,0.02020349,98812.0,98808.0,0.3608]
[1732319320398,0.02020883,98821.0,98808.0,0.3608]
[1732319322408,0.02020883,98821.0,98817.0,0.05054]
[1732319324015,0.3608,98826.0,98817.0,0.05054]
[1732319325112,0.41204093,98826.0,98817.0,0.05054]
[1732319327407,0.05124093,98826.0,98825.0,0.411336]
[1732319327710,0.06440971,98840.0,98825.0,0.411336]
[1732319328107,0.00164001,98855.0,98849.0,0.050524]
[1732319328299,0.06440971,98870.0,98847.0,0.076]
[1732319328500,0.3934,98871.0,98844.0,0.3608]
[1732319328501,0.12881942,98860.0,98844.0,0.3608]
[1732319328706,0.06440971,98854.0,98845.0,0.076]
[1732319328905,0.06440971,98860.0,98845.0,0.076]
[1732319329409,0.06440971,98860.0,98846.0,0.076]
[1732319329805,0.12881942,98860.0,98846.0,0.076]
[1732319330001,0.12881942,98860.0,98847.0,0.076]
[1732319330202,0.05052,98857.0,98844.0,0.3608]
[1732319330416,0.06440971,98854.0,98844.0,0.43676]
[1732319330606,0.00760661,98854.0,98844.0,0.43676]
[1732319330808,0.05052,98857.0,98844.0,0.43676]
[1732319331212,0.05052,98857.0,98844.0,0.3608]
[1732319331411,0.05052,98857.0,98845.0,0.07596]
[1732319331611,0.3608,98853.0,98845.0,0.07596]
[1732319332208,0.3608,98853.0,98840.0,0.06440971]
[1732319332409,0.3608,98853.0,98841.0,0.07596]
[1732319332813,0.3608,98853.0,98840.0,0.06440971]
[1732319333009,0.3608,98853.0,98841.0,0.07596]
[1732319333720,0.3608,98853.0,98840.0,0.06440971]
[1732319333921,0.3608,98844.0,98828.0,0.3608]
[1732319334120,0.3608,98844.0,98830.0,0.06440971]
[1732319335108,0.3608,98844.0,98830.0,0.11494271]
[1732319335707,0.3608,98844.0,98830.0,0.06440971]
[1732319335926,0.3608,98844.0,98836.0,0.05053]
[1732319336106,0.3608,98844.0,98837.0,0.08323]
[1732319337207,0.02019628,98849.0,98838.0,0.3608]
[1732319337411,0.02019628,98849.0,98839.0,0.06440971]
[1732319337713,0.02019628,98849.0,98842.0,0.050527]
[1732319338017,0.02019628,98849.0,98843.0,0.0314]
[1732319338213,0.02019628,98849.0,98843.0,0.081927]
[1732319338617,0.34943905,98853.0,98843.0,0.081927]
[1732319339309,0.34943905,98853.0,98843.0,0.0314]
[1732319339511,0.34943905,98853.0,98845.0,0.050525]
[1732319339717,0.07596,98858.0,98846.0,0.3608]
[1732319340115,0.3608,98861.0,98846.0,0.3608]
[1732319340322,0.06440971,98860.0,98846.0,0.3608]
[1732319340722,0.00760732,98860.0,98846.0,0.3608]
[1732319341724,0.03960732,98860.0,98846.0,0.3608]
[1732319342128,0.02019905,98848.0,98846.0,0.3608]
[1732319346527,0.04799742,98858.0,98846.0,0.3608]
[1732319347622,0.12890971,98860.0,98846.0,0.3608]
[1732319348522,0.3608,98852.0,98842.0,0.07596]
[1732319348729,0.050523,98851.0,98842.0,0.07596]
[1732319348922,0.34943718,98852.0,98842.0,0.07596]
[1732319349729,0.39995918,98852.0,98842.0,0.07596]
[1732319350723,0.34315155,98852.0,98842.0,0.07596]
[1732319352038,0.40756126,98852.0,98842.0,0.07596]
[1732319352846,0.02019839,98848.0,98840.0,0.06440971]
[1732319354746,0.02019839,98848.0,98838.0,0.3608]
[1732319355149,0.02019839,98848.0,98838.0,0.42520971]
[1732319356454,0.02019839,98848.0,98838.0,0.3608]
[1732319357438,0.050527,98844.0,98838.0,0.3608]
[1732319357647,0.0317,98843.0,98838.0,0.3608]
[1732319358256,0.02019839,98848.0,98838.0,0.3608]
[1732319358438,0.02019839,98848.0,98838.0,0.42520971]
[1732319359048,0.04962239,98852.0,98838.0,0.48961942]
[1732319359249,0.0317,98859.0,98848.0,0.050524]
[1732319359445,0.0317,98859.0,98849.0,0.06440971]
[1732319359847,0.08321654,98859.0,98849.0,0.06440971]
[1732319360048,0.0317,98859.0,98849.0,0.06440971]
[1732319360752,0.0201986,98854.0,98849.0,0.06440971]
[1732319360948,0.0201986,98854.0,98846.0,0.3608]
[1732319362956,0.0201986,98854.0,98847.0,0.050524]
[1732319363346,0.050523,98851.0,98838.0,0.3608]
[1732319363660,0.09680971,98850.0,98838.0,0.3608]
[1732319367248,0.03371865,98851.0,98838.0,0.3608]
[1732319367448,0.06440971,98850.0,98838.0,0.3608]
[1732319372653,0.050528,98841.0,98838.0,0.34816558]
[1732319372850,0.0306,98840.0,98826.0,0.3608]
[1732319373151,0.09500971,98840.0,98826.0,0.3608]
[1732319373558,0.050529,98838.0,98826.0,0.3608]
[1732319374161,0.050529,98839.0,98826.0,0.3608]
[1732319374461,0.17096971,98840.0,98826.0,0.3608]
[1732319374765,0.23537942,98840.0,98820.0,0.09460971]
[1732319375060,0.17096971,98840.0,98824.0,0.3608]
[1732319375262,0.22149771,98840.0,98824.0,0.3608]
[1732319375859,0.0961586,98854.0,98838.0,0.3608]
[1732319376066,0.0961586,98854.0,98840.0,0.06440971]
[1732319376256,0.0961586,98854.0,98840.0,0.11493771]
[1732319376658,0.0961586,98854.0,98840.0,0.050528]
[1732319377062,0.0961586,98854.0,98841.0,0.050527]
[1732319377262,0.0201986,98854.0,98841.0,0.050527]
[1732319377662,0.02020001,98845.0,98841.0,0.050527]
[1732319377969,0.0201986,98854.0,98845.0,0.050525]
[1732319381164,0.0201986,98854.0,98843.0,0.050527]
[1732319381759,0.0201986,98854.0,98847.0,0.3608]
[1732319381959,0.0201986,98854.0,98843.0,0.050527]
[1732319387769,0.0201986,98854.0,98840.0,0.0980906]
[1732319388264,0.07596,98858.0,98840.0,0.0980906]
[1732319388864,0.05052,98856.0,98840.0,0.0980906]
[1732319390267,0.1740506,98860.0,98839.0,0.0613]
[1732319390871,0.050521,98854.0,98839.0,0.0613]
[1732319392578,0.050522,98853.0,98839.0,0.0613]
[1732319394173,0.411322,98852.0,98839.0,0.0613]
[1732319395073,0.37976256,98852.0,98839.0,0.0613]
[1732319397069,0.32295556,98852.0,98839.0,0.0613]
[1732319397272,0.30023276,98852.0,98839.0,0.0613]
[1732319398280,0.24342576,98852.0,98839.0,0.0613]
[1732319398775,0.06437514,98850.0,98840.0,0.06437514]
[1732319400868,0.06437514,98850.0,98838.0,0.3608]
[1732319401276,0.050526,98844.0,98838.0,0.3608]
[1732319401575,0.06437514,98850.0,98838.0,0.3608]